fUST/lending_fUST_20240426
["ID","MTS","AMOUNT","RATE_DAILY","PERIOD"]
[323537617,1714078238991,-166.666666,0.00028049,2]
[323537618,1714078239002,-1000.0,0.0002827,2]
[323537619,1714078239013,-166.666666,0.00028701,2]
[323537620,1714078239024,-269.74872697,0.00028701,30]
[323537621,1714078239035,-166.666666,0.00029352,2]
[323537622,1714078239046,-166.666666,0.0003,2]
[323537623,1714078239056,-870.15716401,0.0003,10]
[323537624,1714078239067,-166.666666,0.00030004,2]
[323537625,1714078239078,-166.666666,0.00030655,2]
[323537626,1714078239087,-172.67560793,0.00030827,5]
[323537627,1714078239097,-330.340027,0.00033165,2]
[323537628,1714078239106,-215.408113,0.00033165,2]
[323537629,1714078239115,-466.00099692,0.00034,4]
[323537630,1714078239124,-960.04642396,0.000349,2]
[323537631,1714078239134,-6885.56037624,0.00035,4]
[323537633,1714078239143,-3719.15460311,0.00035,4]
[323537635,1714078239152,-597.58205302,0.00035,2]
[323537637,1714078239162,-186.987055,0.00035616,120]
[323537640,1714078239171,-2047.65428365,0.00038932,2]
[323537663,1714078239370,-330.340027,0.00038933,2]
[323537666,1714078239389,-215.408113,0.00038933,2]
[323537667,1714078239400,-172.67560793,0.00039756,9]
[323537668,1714078239409,-1493.50659497,0.0004,7]
[323537669,1714078239419,-159.824363,0.00040652,2]
[323537670,1714078239429,-161.917522,0.00040709,2]
[323537671,1714078239438,-5975.63,0.00041986,3]
[323537672,1714078239447,-4979.7,0.00041986,3]
[323537673,1714078239456,-4149.75,0.00041986,3]
[323537674,1714078239466,-171.52451041,0.00041994,4]
[323537675,1714078239475,-208.03958157,0.00041994,4]
[323537676,1714078239484,-3166.79512651,0.00041995,4]
[323537677,1714078239494,-61860.54579432,0.00041996,4]
[323537984,1714078242863,-443.85842418,0.00021998,2]
[323538089,1714078243670,-500.0,0.00021998,2]
[323538103,1714078243788,-1644.55273607,0.00021998,2]
[323538105,1714078243797,-191.46085759,0.00032,4]
[323538107,1714078243806,-6507.32342945,0.00041996,4]
[323538109,1714078243815,-252.49535146,0.00042,4]
[323538111,1714078243826,-157.53850697,0.00044252,3]
[323538113,1714078243835,-154.87609912,0.0004434,10]
[323538115,1714078243845,-3458.12,0.0004469,3]
[323538116,1714078243855,-212.01364249,0.00044697,4]
[323538118,1714078243864,-340.52466775,0.00044697,4]
[323538120,1714078243873,-376.55150865,0.00044697,4]
[323538122,1714078243882,-1221.2750687,0.00044698,4]
[323538124,1714078243891,-1038.57706317,0.00044698,4]
[323539237,1714078483813,11983.50103159,0.00024,60]
[323539238,1714078483843,295674.92430305,0.00024,60]
[323539262,1714079220584,300.0,0.00014728,2]
[323539263,1714079251862,280.63378291,0.00014728,2]
[323539264,1714079253100,6016.72097528,0.00014728,2]
[323539265,1714079253122,13172.88487977,0.00014728,2]
[323539266,1714079265882,280.51829867,0.00014728,2]
[323539267,1714079267099,19189.60585505,0.00014728,2]
[323539268,1714079287106,17629.18693947,0.00014728,2]
[323539273,1714079343049,673.55445774,0.00014728,2]
[323539277,1714079369001,673.55445774,0.00014728,2]
[323539281,1714079393557,16094.98479833,0.00014728,2]
[323539282,1714079401466,300.0,0.00014728,2]
[323539285,1714079411547,16094.98479833,0.00014728,2]
[323539286,1714079429840,951.65356674,0.00014728,2]
[323539603,1714079440561,-472.12357594,0.00016117,2]
[323539605,1714079440571,-154.8915759,0.00016118,2]
[323539607,1714079440580,-1620.69351377,0.00016118,2]
[323539609,1714079440589,-283.50200201,0.00016119,2]
[323539611,1714079440598,-520.12623706,0.00016119,2]
[323539612,1714079440608,-187.33972874,0.00016119,2]
[323539614,1714079440617,-623.92968573,0.0001612,2]
[323539616,1714079440626,-207.94518351,0.0001612,2]
[323539618,1714079440635,-154.8915759,0.00016121,2]
[323539621,1714079440645,-768.26768042,0.00016121,2]
[323539623,1714079440654,-474.91817209,0.00016121,2]
[323539625,1714079440664,-521.67886641,0.00016121,2]
[323539627,1714079440673,-235.64384072,0.00016122,2]
[323539628,1714079440682,-539.99117043,0.00016122,2]
[323539630,1714079440691,-154.8915759,0.00016122,2]
[323539632,1714079440700,-308.5768874,0.00016122,2]
[323539634,1714079440709,-1878.59086756,0.00016122,2]
[323539636,1714079440718,-322.0,0.00016123,2]
[323539638,1714079440727,-159.09368306,0.00022,2]
[323539640,1714079440736,-204.57691625,0.000229,2]
[323539642,1714079440745,-59175.99909723,0.0002295,2]
[323539644,1714079440754,-1202.53293628,0.00022951,2]
[323539646,1714079440763,-206.11973565,0.00022951,2]
[323539648,1714079440772,-638.06438949,0.00022951,2]
[323539651,1714079440782,-3048.69949388,0.00022951,2]
[323539652,1714079440791,-1679.50388406,0.00022951,2]
[323539654,1714079440800,-154.8915759,0.00022951,2]
[323539657,1714079440811,-161.97859023,0.00022951,2]
[323539659,1714079440820,-564.65139028,0.00022951,2]
[323539661,1714079440829,-459.83008477,0.00022951,2]
[323539663,1714079440838,-2588.41116025,0.00022952,2]
[323539664,1714079440848,-173.27433191,0.00022952,2]
[323539666,1714079440858,-709.89305319,0.00022952,2]
[323539668,1714079440867,-1090.8216692,0.00022952,2]
[323539671,1714079440876,-980.93631584,0.00022952,2]
[323539673,1714079440885,-300.0,0.00022952,2]
[323539674,1714079440894,-408.98014644,0.00022953,2]
[323539675,1714079440903,-7868.86713707,0.00022953,2]
[323539677,1714079440911,-162.06158319,0.00022953,2]
[323539678,1714079440920,-362.0981443,0.00022953,2]
[323539680,1714079440929,-526.48799582,0.00022953,2]
[323539681,1714079440938,-549.66828971,0.00022953,2]
[323539683,1714079440947,-212.12287173,0.00022953,2]
[323539685,1714079440956,-154.8915759,0.00022954,2]
[323539686,1714079440965,-884.01038673,0.00022954,2]
[323539688,1714079440974,-329.71603932,0.00022954,2]
[323539689,1714079440983,-808.67823944,0.00022954,2]
[323539691,1714079440992,-161.51116319,0.00022955,2]
[323539693,1714079441002,-1312.11264804,0.00022955,2]
[323539694,1714079441011,-154.8915759,0.00022955,2]
[323539696,1714079441020,-203.90168919,0.00022955,2]
[323539697,1714079441029,-157.80708891,0.00022955,2]
[323539699,1714079441038,-1394.84245865,0.00022955,2]
[323539700,1714079441046,-5803.44361904,0.00022956,2]
[323539702,1714079441055,-2516.3002862,0.00022961,2]
[323539704,1714079441065,-713.64240918,0.00023952,2]
[323539705,1714079441075,-495.44471449,0.00023958,2]
[323539707,1714079441084,-1563.01361933,0.00024,2]
[323539709,1714079441092,-3777.9295876,0.00025321,2]
[323539710,1714079441102,-692.83443417,0.00026,2]
[323539712,1714079441111,-160.348274,0.00026814,2]
[323539713,1714079441120,-332.46637311,0.00027396,20]
[323539715,1714079441129,-165.107038,0.00027397,2]
[323539716,1714079441144,-1000.0,0.00027397,2]
[323539718,1714079441152,-166.666666,0.00027397,2]
[323539720,1714079441162,-802.10050588,0.000275,17]
[323539722,1714079441171,-220.80144736,0.00028,2]
[323539723,1714079441180,-166.666666,0.00028038,2]
[323539725,1714079441189,-166.666666,0.00028679,2]
[323539726,1714079441198,-194.18730654,0.00028716,2]
[323539728,1714079441207,-172.36250248,0.00028716,2]
[323539730,1714079441216,-200.0,0.00028716,2]
[323539732,1714079441225,-309.67484219,0.00028716,2]
[323539733,1714079441234,-309.70578646,0.00028716,2]
[323539735,1714079441243,-301.79278737,0.00028716,2]
[323539737,1714079441252,-202.14637118,0.00028717,2]
[323539738,1714079441261,-5173.5234158,0.00028739,2]
[323539856,1714079442883,-350.42643964,0.00016117,2]
[323539858,1714079442895,-145.01827485,0.00016117,2]
[323539860,1714079442904,-193.65224844,0.00016117,2]
[323539862,1714079442913,-2624.70865838,0.00022949,2]
[323539864,1714079442923,-10680.42185,0.00022949,2]
[323539866,1714079442932,-1490.71180475,0.0002296,2]
[323539868,1714079442941,-8278.4765832,0.00028739,2]
[323539870,1714079442951,-500.0,0.00028739,30]
[323539872,1714079442960,-500.0,0.00028739,30]
[323539874,1714079442969,-500.0,0.00028739,30]
[323539876,1714079442978,-500.0,0.00028739,30]
[323539878,1714079442987,-500.0,0.00028739,30]
[323539880,1714079442997,-500.0,0.00028739,30]
[323539883,1714079443006,-500.0,0.00028739,30]
[323539886,1714079443016,-500.0,0.00028739,30]
[323539889,1714079443025,-500.0,0.00028739,30]
[323539891,1714079443034,-500.0,0.00028739,30]
[323539893,1714079443043,-500.0,0.00028739,30]
[323539895,1714079443052,-500.0,0.00028739,30]
[323539897,1714079443063,-500.0,0.00028739,30]
[323539899,1714079443072,-500.0,0.00028739,30]
[323539901,1714079443081,-500.0,0.00028739,30]
[323539903,1714079443090,-500.0,0.00028739,30]
[323539905,1714079443099,-500.0,0.00028739,30]
[323539907,1714079443107,-500.0,0.00028739,30]
[323539909,1714079443116,-500.0,0.00028739,30]
[323539911,1714079443125,-331.34,0.00028739,30]
[323539913,1714079443135,-166.666666,0.00029321,2]
[323539915,1714079443146,-166.666666,0.00029962,2]
[323539917,1714079443155,-379.71550398,0.0003,10]
[323539919,1714079443164,-7676.96623033,0.0003,10]
[323539921,1714079443173,-870.15716401,0.0003,10]
[323539923,1714079443183,-166.666666,0.0003,2]
[323539925,1714079443192,-166.666666,0.00030603,2]
[323539927,1714079443201,-466.00099692,0.00034,4]
[323539929,1714079443211,-13711.86949074,0.000349,2]
[323539931,1714079443220,-151.0,0.000349,2]
[323539933,1714079443230,-154.8915759,0.00035,4]
[323539934,1714079443242,-597.58205302,0.00035,2]
[323539936,1714079443251,-3503.51794046,0.00035,4]
[323539939,1714079443263,-215.63666265,0.00035,4]
[323539941,1714079443273,-214.64927388,0.00035616,3]
[323539944,1714079443292,-307.77510074,0.00035616,3]
[323542939,1714080632027,-275.16174657,0.00024186,2]
[323543814,1714080643138,-206.11973565,0.00024184,2]
[323543816,1714080643147,-408.98014644,0.00024184,2]
[323543818,1714080643156,-7868.86713707,0.00024184,2]
[323543820,1714080643166,-564.65139028,0.00024185,2]
[323543822,1714080643175,-283.50200201,0.00024185,2]
[323543824,1714080643183,-154.84515485,0.00024185,2]
[323543826,1714080643192,-1394.84245865,0.00024185,2]
[323543828,1714080643201,-162.06158319,0.00024185,2]
[323543830,1714080643210,-154.84515485,0.00024185,2]
[323543832,1714080643219,-362.90264292,0.00024186,2]
[323543834,1714080643229,-235.64384072,0.00024186,2]
[323543836,1714080643239,-474.91817209,0.00024186,2]
[323543838,1714080643248,-207.94518351,0.00024186,2]
[323543840,1714080643257,-1878.59086756,0.00024186,2]
[323543842,1714080643266,-154.84515485,0.00024186,2]
[323543844,1714080643275,-173.27433191,0.00024186,2]
[323543846,1714080643284,-329.71603932,0.00024187,2]
[323543849,1714080643293,-10680.42185,0.00024187,2]
[323543851,1714080643303,-768.26768042,0.00024188,5]
[323543853,1714080643312,-980.93631584,0.00024188,2]
[323543855,1714080643322,-187.33972874,0.00024188,2]
[323543857,1714080643331,-470.43342913,0.00024188,2]
[323543860,1714080643342,-1020.27837562,0.00024188,2]
[323543862,1714080643352,-193.65224844,0.00024188,2]
[323543864,1714080643361,-154.84515485,0.00024189,2]
[323543866,1714080643370,-308.5768874,0.00024189,2]
[323543868,1714080643379,-808.67823944,0.00024189,2]
[323543870,1714080643388,-2624.70865838,0.00024189,2]
[323543872,1714080643397,-1620.69351377,0.00024189,2]
[323543873,1714080643406,-1679.50388406,0.0002419,2]
[323543876,1714080643415,-539.99117043,0.0002419,2]
[323543878,1714080643424,-713.64240918,0.0002419,2]
[323543879,1714080643433,-472.12357594,0.0002419,2]
[323543896,1714080643581,-2588.41116025,0.0002419,2]
[323543898,1714080643591,-709.89305319,0.00024191,2]
[323543900,1714080643601,-459.83008477,0.00024191,2]
[323543902,1714080643610,-59175.99909723,0.00024191,2]
[323543904,1714080643619,-521.67886641,0.00024192,2]
[323543906,1714080643628,-1202.53293628,0.00024192,2]
[323543908,1714080643638,-362.0981443,0.00024192,2]
[323543910,1714080643646,-1312.11264804,0.00024192,2]
[323543912,1714080643656,-1090.8216692,0.00024192,2]
[323543914,1714080643665,-2868.8655512,0.00024197,2]
[323543916,1714080643674,-526.48799582,0.00025221,2]
[323543918,1714080643683,-623.92968573,0.00025222,2]
[323543920,1714080643692,-623.92968573,0.00025222,2]
[323543922,1714080643701,-623.92968573,0.00025222,2]
[323543924,1714080643710,-24890.0,0.00025249,2]
[323543926,1714080643719,-1268.2410062,0.00025252,2]
[323543928,1714080643728,-692.83443417,0.00026,2]
[323543930,1714080643737,-154.84515485,0.00026349,2]
[323543932,1714080643746,-154.84515485,0.0002635,2]
[323543934,1714080643755,-154.84515485,0.00026358,2]
[323543936,1714080643765,-332.46637311,0.00027,20]
[323543938,1714080643774,-588.638682,0.00027397,2]
[323543940,1714080643782,-169.265626,0.00027397,2]
[323543942,1714080643793,-1000.0,0.00027397,2]
[323543944,1714080643802,-166.666666,0.00027397,2]
[323543946,1714080643811,-280.789022,0.00027397,2]
[323543948,1714080643821,-802.10050588,0.000275,17]
[323543950,1714080643830,-220.80144736,0.00028,2]
[323543952,1714080643839,-166.666666,0.00028038,2]
[323543954,1714080643848,-166.666666,0.00028679,2]
[323543956,1714080643857,-166.666666,0.00029321,2]
[323543958,1714080643866,-166.666666,0.00029962,2]
[323543960,1714080643875,-870.15716401,0.0003,10]
[323543962,1714080643884,-166.666666,0.0003,2]
[323543964,1714080643893,-166.666666,0.00030603,2]
[323543966,1714080643902,-191.46085759,0.00032,4]
[323543968,1714080643910,-588.638682,0.00033165,2]
[323543970,1714080643919,-280.789022,0.00033165,2]
[323543972,1714080643929,-466.00099692,0.00034,4]
[323543974,1714080643938,-3719.15460311,0.00035,4]
[323543976,1714080643947,-154.87609912,0.00035,4]
[323543978,1714080643955,-597.58205302,0.00035,2]
[323543980,1714080643964,-330.13,0.00035613,5]
[323543982,1714080643973,-154.8915759,0.00035616,15]
[323543984,1714080643983,-2100.01829853,0.00035616,2]
[323543986,1714080643992,-1016.1019285,0.00035616,4]
[323543988,1714080644001,-556.44578063,0.00036993,2]
[323543990,1714080644010,-2047.65428365,0.00037,2]
[323543992,1714080644019,-588.638682,0.00038933,2]
[323543994,1714080644028,-280.789022,0.00038933,2]
[323543996,1714080644038,-1493.50659497,0.0004,7]
[323543998,1714080644047,-1068.6,0.00040646,2]
[323543999,1714080644056,-1068.6,0.00041742,4]
[323544001,1714080644065,-252.49535146,0.00042,4]
[323544004,1714080644074,-1068.6,0.00042838,6]
[323544006,1714080644085,-165.107038,0.00043053,2]
[323544008,1714080644094,-1068.6,0.00043934,120]
[323544010,1714080644103,-500.0,0.00044,7]
[323544012,1714080644112,-520.22,0.00044,4]
[323544014,1714080644121,-154.87609912,0.0004434,10]
[323544016,1714080644130,-233.08913332,0.00044695,4]
[323544018,1714080644139,-411.82309578,0.00044695,4]
[323544020,1714080644148,-358.50584163,0.00044695,4]
[323544022,1714080644157,-186.87541431,0.00044695,4]
[323544024,1714080644165,-2192.6734457,0.00044695,4]
[323544026,1714080644175,-550.48491234,0.00044695,4]
[323544027,1714080644184,-4183.11323506,0.00044695,4]
[323544030,1714080644193,-407.63722803,0.00044695,4]
[323544032,1714080644202,-157.71994287,0.00044695,4]
[323544034,1714080644211,-163.67967726,0.00044695,4]
[323544036,1714080644221,-204.921839,0.00044696,4]
[323544037,1714080644230,-500.0,0.00044696,120]
[323544039,1714080644239,-500.0,0.00044696,120]
[323544041,1714080644248,-500.0,0.00044696,120]
[323544043,1714080644258,-500.0,0.00044696,120]
[323544045,1714080644267,-500.0,0.00044696,120]
[323544047,1714080644276,-500.0,0.00044696,120]
[323544049,1714080644286,-500.0,0.00044696,120]
[323544051,1714080644295,-500.0,0.00044696,120]
[323544053,1714080644304,-500.0,0.00044696,120]
[323544055,1714080644313,-545.48133262,0.00044696,120]
[323544057,1714080644322,-500.0,0.00044696,120]
[323544059,1714080644332,-532.91,0.00044696,30]
[323544061,1714080644341,-72560.09039098,0.00044697,4]
[323544063,1714080644349,-151.0,0.00044697,7]
[323544065,1714080644358,-7012.58703573,0.00044698,4]
[323544067,1714080644367,-155.6047922,0.00044698,4]
[323544069,1714080644376,-515.10459015,0.00044698,4]
[323544071,1714080644386,-468.44380318,0.00044698,4]
[323544073,1714080644395,-523.80732363,0.00044698,4]
[323544076,1714080644405,-67190.63226295,0.000447,7]
[323546031,1714081021519,300.0,0.00014728,2]
[323546039,1714081740835,300.0,0.00014728,2]
[323546051,1714081832239,-362.0981443,0.00018878,2]
[323546053,1714081832248,-187.33972874,0.00018878,2]
[323546055,1714081832257,-1090.8216692,0.00018878,2]
[323546057,1714081832266,-459.83008477,0.00018878,2]
[323546059,1714081832276,-154.84515485,0.00018878,2]
[323546062,1714081832285,-1394.84245865,0.00018878,2]
[323546064,1714081832294,-884.01038673,0.00018879,2]
[323546065,1714081832304,-526.48799582,0.00018879,2]
[323546066,1714081832313,-521.67886641,0.00018879,2]
[323546067,1714081832323,-980.93631584,0.00018879,2]
[323546069,1714081832332,-1735.08302731,0.00018879,2]
[323546149,1714081838233,-1679.50388406,0.00018878,2]
[323546152,1714081838243,-853.32813294,0.00018879,2]
[323546155,1714081838252,-1620.69351377,0.0001888,2]
[323546158,1714081838261,-154.84515485,0.0001888,2]
[323546159,1714081838271,-768.26768042,0.0001888,2]
[323546161,1714081838281,-206.11973565,0.0001888,2]
[323546164,1714081838290,-709.61541389,0.00018881,2]
[323546167,1714081838300,-564.65139028,0.00018881,2]
[323546169,1714081838310,-154.84515485,0.00018881,2]
[323546171,1714081838319,-709.61541389,0.00018881,2]
[323546173,1714081838328,-283.50200201,0.00018882,2]
[323546175,1714081838337,-193.65224844,0.00018882,2]
[323546176,1714081838346,-1878.59086756,0.00018883,2]
[323546179,1714081838356,-808.67823944,0.00018883,2]
[323546181,1714081838365,-474.91817209,0.00018883,2]
[323546183,1714081838374,-472.12357594,0.00018883,2]
[323546185,1714081838383,-709.89305319,0.00018885,2]
[323546186,1714081838393,-280.72378827,0.000189,2]
[323546189,1714081838403,-329.71603932,0.00023881,2]
[323546191,1714081838412,-638.06438949,0.00023882,2]
[323546192,1714081838421,-520.12623706,0.00023883,2]
[323546194,1714081838430,-520.12623706,0.00023883,2]
[323546197,1714081838440,-520.12623706,0.00023883,2]
[323546199,1714081838449,-280.72378827,0.000239,2]
[323546201,1714081838459,-167.63774808,0.00024064,2]
[323546202,1714081838468,-692.83443417,0.00026599,2]
[323546204,1714081838478,-34705.03405022,0.000266,3]
[323546698,1714081843330,-250.0,0.0002127,2]
[323546700,1714081843340,-245.22789991,0.000266,3]
[323549341,1714082080264,299713.67303393,0.00024,60]
[323549348,1714082165200,2437.54717894,0.00011007,2]
[323549351,1714082281445,300.0,0.00014728,2]
[323549353,1714082463073,300.0,0.00014728,2]
[323549354,1714082465121,627.20023068,0.00011007,2]
[323549355,1714082538703,193.65224844,0.00016,2]
[323549356,1714082541342,154.84515485,0.00016,2]
[323549357,1714082549621,154.84515485,0.00016,2]
[323549358,1714082555331,187.33972874,0.00016,2]
[323549359,1714082564611,157.80708891,0.00016,2]
[323549360,1714082565063,980.93631584,0.00016,2]
[323549361,1714082570297,1620.69351377,0.00016,2]
[323549362,1714082571059,1090.8216692,0.00016,2]
[323549363,1714082571571,709.89305319,0.00016,2]
[323549364,1714082571625,474.91817209,0.00016,2]
[323549365,1714082575571,173.27433191,0.00016,2]
[323549366,1714082575627,1679.50388406,0.00016,2]
[323549367,1714082577690,154.84515485,0.00016,2]
[323549368,1714082577893,521.67886641,0.00016,2]
[323549369,1714082580546,300.0,0.00014728,2]
[323549370,1714082581085,221.23139293,0.00012874,2]
[323549371,1714082582173,539.99117043,0.00016,2]
[323549372,1714082583471,1878.59086756,0.00016,2]
[323549373,1714082588178,884.01038673,0.00016,2]
[323549374,1714082588821,362.0981443,0.00016,2]
[323549375,1714082590899,154.84515485,0.00016,2]
[323549376,1714082619216,193.65224844,0.00016,2]
[323549377,1714082666678,884.01038673,0.00016,2]
[323549378,1714082677415,154.84515485,0.00016,2]
[323549379,1714082686344,187.33972874,0.00016,2]
[323549380,1714082686395,3533.96841214,0.00016,2]
[323549381,1714082704607,1679.50388406,0.00016,2]
[323549382,1714082708085,980.93631584,0.00016,2]
[323549383,1714082718444,355.19461434,0.00016,2]
[323549384,1714082720957,495.44471449,0.00016,2]
[323549385,1714082723460,495.44471449,0.00016,2]
[323549386,1714082727982,495.44471449,0.00016,2]
[323549387,1714082732452,495.44471449,0.00016,2]
[323549388,1714082745241,884.01038673,0.00016,2]
[323549389,1714082751921,154.84515485,0.00016,2]
[323549390,1714082760865,187.33972874,0.00016,2]
[323549391,1714082772573,1090.8216692,0.00016,2]
[323549392,1714082779163,474.91817209,0.00016,2]
[323549393,1714082785147,1679.50388406,0.00016,2]
[323549394,1714082822801,24900.0,0.00015091,2]
[323549395,1714082825724,884.01038673,0.00016,2]
[323549396,1714082826436,154.84515485,0.00016,2]
[323549397,1714082841498,187.33972874,0.00016,2]
[323549398,1714082843072,1090.8216692,0.00016,2]
[323549399,1714082845113,173.27433191,0.00016,2]
[323549400,1714082847669,474.91817209,0.00016,2]
[323549413,1714082910173,610.78059186,0.00015993,2]
[323549414,1714082925735,1090.8216692,0.00016,2]
[323549415,1714082925878,154.84515485,0.00016,2]
[323549420,1714082927381,207.94518351,0.00016,2]
[323549421,1714082930205,1679.50388406,0.00016,2]
[323549422,1714082932199,474.91817209,0.00016,2]
[323549423,1714082933326,154.84515485,0.00016,2]
[323549424,1714082940116,468.57464287,0.00016,2]
[323549425,1714082940869,300.0,0.00016,2]
[323549426,1714082941637,206.11973565,0.00016,2]
[323549427,1714082942237,300.0,0.00016,2]
[323549428,1714082949860,520.12623706,0.00016,2]
[323549432,1714082952622,564.65139028,0.00016,2]
[323549433,1714082967960,1202.53293628,0.00016,2]
[323549434,1714082969360,362.0981443,0.00016,2]
[323549435,1714082969895,308.5768874,0.00016,2]
[323549436,1714082974018,1878.59086756,0.00016,2]
[323549437,1714082977258,7868.86713707,0.00016,2]
[323549440,1714082985550,154.84515485,0.00016,2]
[323549441,1714082988280,1490.71180475,0.00016,2]
[323549442,1714082990605,162.06158319,0.00016,2]
[323549447,1714083006050,154.84515485,0.00016,2]
[323549449,1714083023982,160.16320828,0.00016,2]
[323549481,1714083032390,-154.84515485,0.00016084,2]
[323549483,1714083032399,-207.94518351,0.00016085,2]
[323549485,1714083032408,-173.27433191,0.00016086,2]
[323549487,1714083032417,-300.0,0.00016086,2]
[323549489,1714083032427,-300.0,0.00016086,2]
[323549491,1714083032435,-225.7427385,0.00016086,2]
[323549493,1714083032457,-2016.47502924,0.00016086,2]
[323549496,1714083032468,-3448.73284599,0.00016086,2]
[323549498,1714083032481,-112.49300531,0.00016086,2]
[323549500,1714083032490,-187.33972874,0.00016087,2]
[323549502,1714083032499,-1213.95378242,0.00016087,2]
[323550116,1714083038452,-59175.99909723,0.00016086,2]
[323550118,1714083038462,-439.89965623,0.00016087,2]
[323550120,1714083038471,-3533.96841214,0.00016087,2]
[323550122,1714083038481,-162.06158319,0.00016087,2]
[323550124,1714083038490,-154.84515485,0.00016087,2]
[323550126,1714083038500,-229.11138856,0.00016087,2]
[323550362,1714083041370,-308.5768874,0.00016086,2]
[323550364,1714083041386,-1261.60041619,0.00016087,2]
[323550366,1714083041395,-495.44471449,0.00016087,2]
[323550368,1714083041405,-1893.47719144,0.00016088,2]
[323550370,1714083041414,-586.01078382,0.00016088,2]
[323550372,1714083041425,-193.27427959,0.0001609,2]
[323550374,1714083041434,-1101.1018741,0.0001609,2]
[323550376,1714083041443,-213.22526832,0.0001609,2]
[323550378,1714083041452,-237.75656669,0.0001609,2]
[323550380,1714083041461,-158.9698689,0.0001609,2]
[323550382,1714083041470,-197.65877628,0.0001609,2]
[323550384,1714083041479,-154.95429644,0.0001609,2]
[323550386,1714083041488,-1578.09578874,0.0001609,2]
[323550388,1714083041497,-208.26363293,0.0001609,2]
[323550390,1714083041506,-158.1526915,0.0001609,2]
[323550392,1714083041515,-1063.99107032,0.0001609,2]
[323550394,1714083041525,-534.4815085,0.0001609,2]
[323550395,1714083041533,-156.34804998,0.0001609,2]
[323550397,1714083041543,-234.01274521,0.0001609,2]
[323550399,1714083041553,-345.18946662,0.0001609,2]
[323550401,1714083041562,-466.70894683,0.0001609,2]
[323550403,1714083041571,-388.71602526,0.0001609,2]
[323550405,1714083041581,-476.96634824,0.0001609,2]
[323550407,1714083041590,-358.73965576,0.0001609,2]
[323550409,1714083041599,-600.72987637,0.00016091,2]
[323550411,1714083041608,-154.84515485,0.00016093,2]
[323550413,1714083041617,-249.96730519,0.00016093,2]
[323550415,1714083041634,-638.60942196,0.00016093,2]
[323550417,1714083041645,-670.17556354,0.00016093,2]
[323550419,1714083041654,-157.71994287,0.00016094,2]
[323550421,1714083041663,-741.1791656,0.00016094,2]
[323550422,1714083041671,-2624.70865838,0.00016107,2]
[323550424,1714083041681,-420.0,0.00017586,2]
[323550426,1714083041690,-420.0,0.00017695,2]
[323550428,1714083041699,-160.348274,0.00019178,2]
[323550430,1714083041709,-587.0,0.00019225,2]
[323550432,1714083041717,-587.0,0.00019464,2]
[323550434,1714083041727,-150.0,0.0001989,2]
[323550436,1714083041736,-1200.03630504,0.00019999,2]
[323550438,1714083041744,-67368.42695755,0.0002,2]
[323550439,1714083041753,-823.0,0.00021018,2]
[323550441,1714083041762,-823.0,0.0002141,2]
[323550443,1714083041771,-200.97014889,0.00021786,2]
[323550445,1714083041780,-202.14692492,0.00021898,2]
[323550447,1714083041789,-150.0,0.000219,2]
[323550449,1714083041799,-638.06438949,0.00022,2]
[323550451,1714083041808,-150.0,0.0002215,2]
[323550453,1714083041816,-1152.0,0.00022978,2]
[323550455,1714083041826,-610.78059183,0.0002312,2]
[323550457,1714083041836,-870.0,0.00023552,2]
[323550459,1714083041845,-150.0,0.000244,2]
[323550461,1714083041855,-999.16887003,0.00025182,2]
[323550463,1714083041865,-692.83443417,0.00026,2]
[323550465,1714083041874,-1057.03497015,0.00026597,2]
[323550467,1714083041889,-239.16360786,0.00026598,2]
[323550469,1714083041898,-404.24311843,0.00026599,2]
[323550471,1714083041908,-179.74883447,0.00026599,2]
[323550473,1714083041917,-1326.04887285,0.00026599,2]
[323550475,1714083041926,-31282.04065026,0.00026599,2]
[323550477,1714083041940,-16132.35673552,0.00026599,2]
[323550479,1714083041949,-18895.88663103,0.000266,3]